fUST/lending_fUST_20240301
["ID","MTS","AMOUNT","RATE_DAILY","PERIOD"]
[315953104,1709302237336,-500.0,0.00020547,2]
[315953105,1709302237345,-500.0,0.00020547,2]
[315953106,1709302237355,-500.0,0.00020547,2]
[315953107,1709302237364,-500.0,0.00020547,2]
[315953108,1709302237373,-500.0,0.00020547,2]
[315953109,1709302237382,-500.0,0.00020547,2]
[315953110,1709302237391,-500.0,0.00020547,2]
[315953111,1709302237401,-500.0,0.00020547,2]
[315953112,1709302237410,-500.0,0.00020547,2]
[315953113,1709302237419,-500.0,0.00020547,2]
[315953114,1709302237428,-500.0,0.00020547,2]
[315953115,1709302237437,-500.0,0.00020547,2]
[315953116,1709302237447,-500.0,0.00020547,2]
[315953117,1709302237456,-500.0,0.00020547,2]
[315953118,1709302237466,-500.0,0.00020547,2]
[315953119,1709302237476,-500.0,0.00020547,2]
[315953120,1709302237485,-2336.49,0.00020547,2]
[315953121,1709302237494,-500.0,0.00020547,2]
[315953122,1709302237504,-500.0,0.00020547,2]
[315953123,1709302237513,-500.0,0.00020547,2]
[315953124,1709302237523,-500.0,0.00020547,2]
[315953125,1709302237532,-500.0,0.00020547,2]
[315953126,1709302237542,-500.0,0.00020547,2]
[315953127,1709302237552,-500.0,0.00020547,2]
[315953128,1709302237562,-500.0,0.00020547,2]
[315953129,1709302237572,-500.0,0.00020547,2]
[315953130,1709302237582,-500.0,0.00020547,2]
[315953131,1709302237591,-501.20052606,0.00020547,2]
[315953132,1709302237601,-500.0,0.00020547,2]
[315953133,1709302237611,-500.0,0.00020547,2]
[315953134,1709302237620,-500.0,0.00020547,2]
[315953135,1709302237630,-500.0,0.00020547,2]
[315953136,1709302237639,-500.0,0.00020547,2]
[315953137,1709302237648,-500.0,0.00020547,2]
[315953138,1709302237657,-500.0,0.00020547,2]
[315953139,1709302237667,-500.0,0.00020547,2]
[315953140,1709302237676,-500.0,0.00020547,2]
[315953141,1709302237685,-500.0,0.00020547,2]
[315953142,1709302237695,-500.0,0.00020547,2]
[315953143,1709302237704,-500.0,0.00020547,2]
[315953144,1709302237714,-369.66360784,0.00020547,2]
[315953145,1709302237723,-502.11209839,0.00020547,2]
[315953146,1709302237732,-500.90692191,0.00020547,2]
[315953147,1709302237742,-231.81109289,0.00020547,2]
[315953148,1709302237752,-500.0,0.00020547,2]
[315953149,1709302237761,-500.0,0.00020547,2]
[315953150,1709302237770,-500.55275279,0.00020547,2]
[315953151,1709302237779,-500.0,0.00020547,2]
[315953152,1709302237788,-406.86024344,0.00020547,2]
[315953153,1709302237797,-500.0,0.00020547,2]
[315953154,1709302237807,-500.0,0.00020547,2]
[315953155,1709302237816,-500.0,0.00020547,2]
[315953156,1709302237825,-500.46472047,0.00020547,2]
[315953157,1709302237834,-198.5294389,0.00020547,2]
[315953158,1709302237843,-391.00786039,0.00020547,2]
[315953159,1709302237852,-500.31096572,0.00020547,2]
[315953160,1709302237861,-500.74845288,0.00020547,2]
[315953161,1709302237870,-500.0,0.00020547,2]
[315953162,1709302237880,-500.0,0.00020547,2]
[315953163,1709302237889,-500.0,0.00020547,2]
[315953164,1709302237898,-415.46308815,0.00020547,2]
[315953165,1709302237907,-500.0,0.00020547,2]
[315953166,1709302237917,-500.0,0.00020547,2]
[315953167,1709302237926,-500.0,0.00020547,2]
[315953168,1709302237935,-500.0,0.00020547,2]
[315953169,1709302237945,-500.0,0.00020547,2]
[315953170,1709302237954,-205.1715328,0.00020547,2]
[315953171,1709302237966,-500.0,0.00020547,2]
[315953172,1709302237975,-500.0,0.00020547,2]
[315953173,1709302237984,-500.0,0.00020547,2]
[315953174,1709302237994,-500.0,0.00020547,2]
[315953175,1709302238002,-500.0,0.00020547,2]
[315953176,1709302238012,-500.0,0.00020547,2]
[315953177,1709302238021,-500.0,0.00020547,2]
[315953178,1709302238030,-500.0,0.00020547,2]
[315953179,1709302238040,-500.0,0.00020547,2]
[315953180,1709302238049,-500.0,0.00020547,2]
[315953181,1709302238058,-500.0,0.00020547,2]
[315953182,1709302238068,-500.0,0.00020547,2]
[315953183,1709302238076,-501.72333826,0.00020547,2]
[315953184,1709302238086,-155.15515516,0.00020547,2]
[315953185,1709302238095,-500.0,0.00020547,2]
[315953186,1709302238104,-500.0,0.00020547,2]
[315953187,1709302238113,-500.0,0.00020547,2]
[315953188,1709302238122,-500.0,0.00020547,2]
[315953189,1709302238131,-500.0,0.00020547,2]
[315953190,1709302238140,-500.0,0.00020547,2]
[315953191,1709302238149,-500.0,0.00020547,2]
[315953192,1709302238159,-500.0,0.00020547,2]
[315953193,1709302238169,-500.0,0.00020547,2]
[315953194,1709302238179,-500.0,0.00020547,2]
[315953195,1709302238188,-500.0,0.00020547,2]
[315953196,1709302238197,-500.0,0.00020547,2]
[315953197,1709302238207,-500.0,0.00020547,2]
[315953198,1709302238218,-500.0,0.00020547,2]
[315953199,1709302238228,-500.0,0.00020547,2]
[315953200,1709302238238,-500.0,0.00020547,2]
[315953201,1709302238249,-500.0,0.00020547,2]
[315953202,1709302238258,-500.0,0.00020547,2]
[315953203,1709302238268,-500.0,0.00020547,2]
[315953204,1709302238279,-500.0,0.00020547,2]
[315953205,1709302238288,-393.43007268,0.00020547,2]
[315953206,1709302238298,-500.0,0.00020547,2]
[315953207,1709302238307,-500.0,0.00020547,2]
[315953208,1709302238317,-184.43686095,0.00020547,2]
[315953209,1709302238326,-500.42238858,0.00020547,2]
[315953210,1709302238335,-501.6599369,0.00020547,2]
[315953211,1709302238345,-500.0,0.00020547,2]
[315953212,1709302238355,-500.0,0.00020547,2]
[315953213,1709302238365,-500.0,0.00020547,2]
[315953214,1709302238374,-500.44415095,0.00020547,2]
[315953215,1709302238384,-500.0,0.00020547,2]
[315953216,1709302238393,-500.0,0.00020547,2]
[315953217,1709302238402,-500.0,0.00020547,2]
[315953218,1709302238411,-500.0,0.00020547,2]
[315953219,1709302238420,-500.0,0.00020547,2]
[315953220,1709302238429,-500.0,0.00020547,2]
[315953221,1709302238439,-500.0,0.00020547,2]
[315953222,1709302238448,-500.0,0.00020547,2]
[315953223,1709302238457,-500.0,0.00020547,2]
[315953224,1709302238468,-500.0,0.00020547,2]
[315953225,1709302238477,-500.0,0.00020547,2]
[315953226,1709302238487,-500.0,0.00020547,2]
[315953227,1709302238496,-500.0,0.00020547,2]
[315953228,1709302238505,-500.0,0.00020547,2]
[315953229,1709302238514,-500.63277847,0.00020547,2]
[315953230,1709302238524,-500.0,0.00020547,2]
[315953231,1709302238534,-500.0,0.00020547,2]
[315953232,1709302238543,-500.0,0.00020547,2]
[315953233,1709302238553,-500.0,0.00020547,2]
[315953234,1709302238562,-500.0,0.00020547,2]
[315953235,1709302238572,-500.0,0.00020547,2]
[315953236,1709302238581,-500.0,0.00020547,2]
[315953237,1709302238590,-500.0,0.00020547,2]
[315953238,1709302238599,-500.0,0.00020547,2]
[315953239,1709302238608,-500.0,0.00020547,2]
[315953240,1709302238617,-500.0,0.00020547,2]
[315953241,1709302238626,-500.0,0.00020547,2]
[315953242,1709302238635,-502.78381319,0.00020547,2]
[315953243,1709302238645,-604.88625747,0.00020547,2]
[315953244,1709302238654,-500.0,0.00020547,2]
[315953245,1709302238663,-505.63704845,0.00020547,2]
[315953246,1709302238672,-500.0,0.00020547,2]
[315953247,1709302238681,-500.0,0.00020547,2]
[315953248,1709302238690,-500.0,0.00020547,2]
[315953249,1709302238700,-500.0,0.00020547,2]
[315953250,1709302238709,-500.0,0.00020547,2]
[315953251,1709302238721,-500.0,0.00020547,2]
[315953252,1709302238730,-500.0,0.00020547,2]
[315953253,1709302238739,-500.0,0.00020547,2]
[315953254,1709302238748,-501.48068139,0.00020547,2]
[315953255,1709302238757,-500.0,0.00020547,2]
[315953256,1709302238766,-500.0,0.00020547,2]
[315953257,1709302238776,-500.0,0.00020547,2]
[315953258,1709302238785,-601.30700741,0.00020547,2]
[315953259,1709302238794,-1815.65,0.00020547,2]
[315953260,1709302238803,-1815.65,0.00020547,2]
[315953261,1709302238813,-1815.65,0.00020547,2]
[315953262,1709302238822,-569.58271227,0.00020547,2]
[315953263,1709302238831,-1815.65,0.00020547,2]
[315953264,1709302238840,-1815.65,0.00020547,2]
[315953265,1709302238849,-1815.65,0.00020547,2]
[315953266,1709302238859,-500.0,0.00020547,2]
[315953267,1709302238868,-500.0,0.00020547,2]
[315953268,1709302238878,-1815.65,0.00020547,2]
[315953269,1709302238887,-500.0,0.00020547,2]
[315953270,1709302238896,-500.0,0.00020547,2]
[315953272,1709302238906,-500.0,0.00020547,2]
[315953274,1709302238915,-500.0,0.00020547,2]
[315953276,1709302238924,-500.0,0.00020547,2]
[315953278,1709302238934,-500.0,0.00020547,2]
[315953281,1709302238943,-432.38,0.00020547,2]
[315953282,1709302238952,-500.0,0.00020547,2]
[315953283,1709302238961,-500.0,0.00020547,2]
[315953284,1709302238972,-515.5973225,0.00020547,2]
[315953285,1709302238980,-500.0,0.00020547,2]
[315953286,1709302238990,-500.0,0.00020547,2]
[315953287,1709302238999,-500.6436259,0.00020547,2]
[315953288,1709302239008,-500.0,0.00020547,2]
[315953289,1709302239017,-500.0,0.00020547,2]
[315953291,1709302239026,-500.0,0.00020547,2]
[315953293,1709302239035,-500.0,0.00020547,2]
[315953295,1709302239044,-500.0,0.00020547,2]
[315953296,1709302239053,-500.67378752,0.00020547,2]
[315953297,1709302239063,-500.0,0.00020547,2]
[315953298,1709302239072,-500.0,0.00020547,2]
[315953299,1709302239082,-166.666666,0.00020674,2]
[315953301,1709302239093,-1000.0,0.00020728,2]
[315953303,1709302239103,-8234.00193465,0.0002089,2]
[315953305,1709302239114,-500.0,0.00020898,2]
[315953307,1709302239123,-500.0,0.00020898,2]
[315953309,1709302239133,-1328.12064652,0.00020899,2]
[315953311,1709302239142,-1328.12064652,0.00020899,2]
[315953312,1709302239150,-1328.12064652,0.00020899,2]
[315953313,1709302239159,-1328.12064652,0.00020899,2]
[315953314,1709302239168,-1328.12064652,0.000209,2]
[315953315,1709302239177,-1328.12064652,0.000209,2]
[315953316,1709302239186,-1328.12064652,0.000209,2]
[315953317,1709302239195,-1328.12064652,0.000209,2]
[315953319,1709302239205,-300.0,0.000209,9]
[315953321,1709302239216,-1328.12064652,0.000209,2]
[315953323,1709302239225,-500.0,0.00020975,2]
[315953325,1709302239235,-332.44,0.00020975,2]
[315953327,1709302239244,-500.0,0.00020975,2]
[315953329,1709302239254,-893.5,0.00020975,2]
[315953331,1709302239263,-500.0,0.00020975,2]
[315953333,1709302239274,-500.0,0.00020975,2]
[315953335,1709302239284,-500.0,0.00020975,2]
[315953337,1709302239293,-500.0,0.00020975,2]
[315953339,1709302239302,-500.0,0.00020975,2]
[315953341,1709302239311,-1815.65,0.00020975,2]
[315953343,1709302239320,-500.0,0.00020976,2]
[315953345,1709302239329,-500.0,0.00020976,2]
[315953347,1709302239338,-517.59582117,0.00020976,2]
[315953349,1709302239348,-500.0,0.00020976,2]
[315953351,1709302239357,-500.0,0.00020976,2]
[315953353,1709302239366,-500.0,0.00020976,2]
[315953355,1709302239375,-500.0,0.00020996,2]
[315953357,1709302239384,-500.0,0.00020996,2]
[315953359,1709302239393,-541.7,0.00020996,2]
[315953361,1709302239402,-500.0,0.00020997,2]
[315953363,1709302239411,-480.48662397,0.00020997,2]
[315953365,1709302239420,-500.0,0.00020997,2]
[315953367,1709302239430,-500.0,0.00020997,2]
[315953368,1709302239439,-500.0,0.00020997,2]
[315953370,1709302239448,-500.0,0.00020997,2]
[315953371,1709302239458,-354.31,0.00020997,2]
[315953373,1709302239468,-2336.49,0.00020997,2]
[315953374,1709302239477,-500.0,0.00020997,2]
[315953376,1709302239486,-500.0,0.00020997,2]
[315953384,1709302239568,-500.0,0.00020997,2]
[315953385,1709302239579,-155.15360207,0.00020998,2]
[315953386,1709302239588,-155.15360207,0.00020998,2]
[315953387,1709302239597,-331.56396634,0.00020998,2]
[315953388,1709302239606,-155.15360207,0.00020998,2]
[315953389,1709302239615,-1603.92253255,0.00020998,2]
[315953390,1709302239625,-179.64765837,0.00020998,2]
[315953393,1709302239702,-661.5228741,0.00020998,2]
[315953394,1709302239711,-1422.41751111,0.00020998,2]
[315953396,1709302239722,-220.5995457,0.00020998,2]
[315953398,1709302239731,-178.0,0.00020998,2]
[315953400,1709302239740,-194.33804633,0.00020998,2]
[315953402,1709302239749,-155.31370596,0.00020998,2]
[315953404,1709302239757,-300.0,0.00020998,2]
[315953405,1709302239766,-155.52064643,0.00020998,2]
[315953407,1709302239776,-1328.87206199,0.00020998,2]
[315953409,1709302239785,-500.0,0.00020998,2]
[315953411,1709302239794,-498.19884695,0.00020998,2]
[315953413,1709302239804,-500.0,0.00020998,2]
[315953415,1709302239813,-500.0,0.00020998,2]
[315953416,1709302239822,-500.0,0.00020998,2]
[315953417,1709302239831,-500.0,0.00020998,2]
[315953418,1709302239841,-500.0,0.00020998,2]
[315953419,1709302239850,-500.0,0.00020998,2]
[315953420,1709302239859,-503.40830356,0.00020998,2]
[315953421,1709302239868,-247.30975943,0.00020998,2]
[315953422,1709302239877,-500.0,0.00020998,2]
[315953423,1709302239886,-454.59682895,0.00020998,2]
[315953424,1709302239895,-1212.35049696,0.00020998,2]
[315953425,1709302239904,-597.31,0.00020998,2]
[315953426,1709302239914,-500.0,0.00020998,2]
[315953427,1709302239922,-500.0,0.00020998,2]
[315953428,1709302239931,-160.55,0.00020998,2]
[315953429,1709302239940,-500.0,0.00020998,2]
[315953430,1709302239949,-455.36,0.00020998,2]
[315953431,1709302239958,-500.0,0.00020998,2]
[315953432,1709302239968,-500.0,0.00020998,2]
[315953433,1709302239976,-500.0,0.00020998,2]
[315953434,1709302239986,-500.0,0.00020998,2]
[315953435,1709302239995,-339.38,0.00020998,2]
[315953436,1709302240004,-893.5,0.00020998,2]
[315953437,1709302240013,-893.5,0.00020998,2]
[315953438,1709302240022,-893.5,0.00020998,2]
[315953439,1709302240031,-500.0,0.00020998,2]
[315953440,1709302240040,-893.5,0.00020998,2]
[315953441,1709302240050,-500.0,0.00020998,2]
[315953442,1709302240058,-500.0,0.00020998,2]
[315953443,1709302240067,-500.0,0.00020998,2]
[315953444,1709302240077,-545.4,0.00020998,2]
[315953445,1709302240086,-500.0,0.00020998,2]
[315953446,1709302240095,-500.0,0.00020998,2]
[315953447,1709302240104,-418.98,0.00020998,2]
[315953448,1709302240113,-500.0,0.00020998,2]
[315953449,1709302240121,-500.0,0.00020998,2]
[315953450,1709302240131,-500.0,0.00020998,2]
[315953451,1709302240140,-500.0,0.00020998,2]
[315953452,1709302240148,-500.0,0.00020998,2]
[315953453,1709302240157,-500.0,0.00020998,2]
[315953454,1709302240166,-500.0,0.00020998,2]
[315953455,1709302240175,-500.0,0.00020998,2]
[315953456,1709302240185,-500.0,0.00020998,2]
[315953457,1709302240194,-500.0,0.00020998,2]
[315953458,1709302240203,-500.0,0.00020998,2]
[315953459,1709302240212,-500.0,0.00020998,2]
[315953460,1709302240222,-1815.65,0.00020998,2]
[315953461,1709302240231,-1815.65,0.00020998,2]
[315953462,1709302240240,-1815.65,0.00020998,2]
[315953463,1709302240250,-1815.65,0.00020998,2]
[315953464,1709302240265,-535.19307991,0.00020999,2]
[315953465,1709302240274,-500.0,0.00020999,2]
[315953466,1709302240283,-500.0,0.00020999,2]
[315953467,1709302240292,-500.0,0.00020999,2]
[315953469,1709302240302,-500.0,0.00020999,2]
[315953470,1709302240311,-406.58,0.00020999,2]
[315953471,1709302240320,-500.0,0.00020999,2]
[315953472,1709302240329,-500.0,0.00020999,2]
[315953473,1709302240339,-500.0,0.00020999,2]
[315953475,1709302240347,-500.0,0.00020999,2]
[315953477,1709302240357,-500.0,0.00020999,2]
[315953479,1709302240366,-500.0,0.00020999,2]
[315953481,1709302240375,-500.0,0.00020999,2]
[315953483,1709302240384,-500.0,0.00020999,2]
[315953485,1709302240394,-442.22,0.00020999,2]
[315953487,1709302240403,-500.0,0.00020999,2]
[315953489,1709302240412,-500.0,0.00020999,2]
[315953491,1709302240421,-500.0,0.00020999,2]
[315953493,1709302240429,-504.2419818,0.00020999,2]
[315953495,1709302240439,-500.0,0.00020999,2]
[315953497,1709302240448,-500.0,0.00020999,2]
[315953499,1709302240457,-500.0,0.00020999,2]
[315953501,1709302240465,-500.0,0.00020999,2]
[315953503,1709302240474,-500.0,0.00020999,2]
[315953505,1709302240483,-500.0,0.00020999,2]
[315953507,1709302240493,-500.0,0.00020999,2]
[315953509,1709302240502,-500.0,0.00020999,2]
[315953511,1709302240511,-500.0,0.00020999,2]
[315953513,1709302240520,-500.0,0.00020999,2]
[315953515,1709302240529,-249.86,0.00020999,2]
[315953517,1709302240538,-500.0,0.00020999,2]
[315953519,1709302240547,-385.37,0.00020999,2]
[315953521,1709302240556,-649.95272123,0.00020999,2]
[315953523,1709302240567,-500.0,0.00020999,2]
[315953525,1709302240576,-500.0,0.00020999,2]
[315953527,1709302240585,-500.0,0.00020999,2]
[315953529,1709302240594,-500.0,0.00020999,2]
[315953531,1709302240604,-500.0,0.00020999,2]
[315953533,1709302240613,-500.0,0.00020999,2]
[315953535,1709302240622,-500.0,0.00020999,2]
[315953537,1709302240631,-500.0,0.00020999,2]
[315953539,1709302240640,-500.0,0.00020999,2]
[315953541,1709302240650,-500.0,0.00020999,2]
[315953543,1709302240659,-500.0,0.00020999,2]
[315953545,1709302240668,-500.0,0.00020999,2]
[315953547,1709302240678,-500.0,0.00020999,2]
[315953549,1709302240687,-500.0,0.00020999,2]
[315953551,1709302240697,-500.0,0.00020999,2]
[315953553,1709302240706,-640.2,0.00020999,2]
[315953555,1709302240716,-893.5,0.00020999,2]
[315953557,1709302240725,-893.5,0.00020999,2]
[315953559,1709302240734,-893.5,0.00020999,2]
[315953561,1709302240743,-893.5,0.00020999,2]
[315953563,1709302240752,-500.0,0.00020999,2]
[315953565,1709302240761,-893.5,0.00020999,2]
[315953567,1709302240770,-500.0,0.00020999,2]
[315953569,1709302240779,-893.5,0.00020999,2]
[315953571,1709302240788,-893.5,0.00020999,2]
[315953573,1709302240798,-893.5,0.00020999,2]
[315953575,1709302240807,-499.82932862,0.00020999,2]
[315953577,1709302240816,-893.5,0.00020999,2]
[315953579,1709302240825,-893.5,0.00020999,2]
[315953580,1709302240835,-893.5,0.00020999,2]
[315953582,1709302240844,-893.69420724,0.00020999,2]
[315953584,1709302240853,-500.0,0.00020999,2]
[315953587,1709302240863,-500.0,0.00020999,2]
[315953589,1709302240873,-500.0,0.00020999,2]
[315953591,1709302240882,-500.0,0.00020999,2]
[315953592,1709302240891,-500.0,0.00020999,2]
[315953595,1709302240901,-500.0,0.00020999,2]
[315953597,1709302240913,-500.0,0.00020999,2]
[315953599,1709302240922,-500.0,0.00020999,2]
[315953601,1709302240931,-500.0,0.00020999,2]
[315953603,1709302240940,-500.0,0.00020999,2]
[315953605,1709302240949,-436.28,0.00020999,2]
[315953606,1709302240957,-2336.49,0.00020999,2]
[315953609,1709302240968,-2336.49,0.00020999,2]
[315953611,1709302240977,-2336.49,0.00020999,2]
[315953613,1709302240986,-2336.49,0.00020999,2]
[315953614,1709302240995,-2336.49,0.00020999,2]
[315953616,1709302241004,-2336.49,0.00020999,2]
[315953618,1709302241013,-2336.49,0.00020999,2]
[315953620,1709302241021,-500.0,0.00020999,2]
[315953622,1709302241030,-2336.49,0.00020999,2]
[315953624,1709302241039,-623.75,0.00020999,2]
[315953626,1709302241049,-2336.49,0.00020999,2]
[315953629,1709302241058,-2336.49,0.00020999,2]
[315953630,1709302241067,-2336.49,0.00020999,2]
[315953632,1709302241077,-2336.49,0.00020999,2]
[315953634,1709302241085,-2336.49,0.00020999,2]
[315953636,1709302241095,-2336.49,0.00020999,2]
[315953638,1709302241104,-2336.49,0.00020999,2]
[315953641,1709302241114,-2336.49,0.00020999,2]
[315953643,1709302241123,-2336.49,0.00020999,2]
[315953644,1709302241132,-2336.49,0.00020999,2]
[315953646,1709302241141,-2336.49,0.00020999,2]
[315953649,1709302241151,-2336.49,0.00020999,2]
[315953651,1709302241160,-2336.49,0.00020999,2]
[315953653,1709302241170,-2336.68,0.00020999,2]
[315953655,1709302241179,-500.0,0.00020999,2]
[315953657,1709302241188,-500.0,0.00020999,2]
[315953659,1709302241198,-166.2,0.00020999,2]
[315953661,1709302241206,-500.0,0.00020999,2]
[315953663,1709302241215,-155.9,0.00020999,2]
[315953665,1709302241225,-1815.65,0.00020999,2]
[315953667,1709302241234,-1815.65,0.00020999,2]
[315953669,1709302241243,-1815.65,0.00020999,2]
[315953671,1709302241254,-621.06206413,0.00020999,2]
[315953692,1709302241448,-48.34848111,0.0001991,2]
[315953694,1709302241459,-2103.79599899,0.0001991,2]
[315953696,1709302241469,-1486.2,0.00020537,3]
[315953706,1709302241553,-500.0,0.00020547,2]
[315953708,1709302241562,-500.0,0.00020547,2]
[315953710,1709302241571,-500.0,0.00020547,2]
[315953712,1709302241580,-500.0,0.00020547,2]
[315953714,1709302241590,-500.0,0.00020547,2]
[315953716,1709302241599,-500.0,0.00020975,2]
[315953718,1709302241609,-500.0,0.00020998,2]
[315953720,1709302241618,-500.0,0.00020998,2]
[315953722,1709302241627,-500.0,0.00020998,2]
[315953724,1709302241637,-500.0,0.00020998,2]
[315953726,1709302241646,-1194.58793587,0.00020999,2]
[315953728,1709302241655,-1815.65,0.00020999,2]
[315953730,1709302241665,-1815.65,0.00020999,2]
[315953732,1709302241674,-1815.65,0.00020999,2]
[315953734,1709302241683,-1815.65,0.00020999,2]
[315953736,1709302241692,-1815.65,0.00020999,2]
[315953738,1709302241701,-1815.65,0.00020999,2]
[315953740,1709302241710,-1815.65,0.00020999,2]
[315953742,1709302241719,-1815.8329636,0.00020999,2]
[315953744,1709302241729,-500.0,0.00020999,2]
[315953746,1709302241738,-500.0,0.00020999,2]
[315953748,1709302241747,-500.0,0.00020999,2]
[315953750,1709302241757,-500.0,0.00020999,2]
[315953752,1709302241766,-500.0,0.00020999,2]
[315953754,1709302241775,-500.0,0.00020999,2]
[315953756,1709302241785,-500.0,0.00020999,2]
[315953758,1709302241794,-436.28666858,0.00020999,2]
[315953760,1709302241804,-300.0,0.00020999,2]
[315953762,1709302241814,-233.46090995,0.00020999,2]
[315953764,1709302241823,-450.0,0.00020999,2]
[315953765,1709302241834,-313.42263696,0.00020999,2]
[315953767,1709302241843,-544.91654711,0.00020999,2]
[315953769,1709302241852,-3196361.06067876,0.00021,2]
[315953780,1709302241938,-76395.59625725,0.00021,2]
[315953782,1709302241950,-16877.01636245,0.00021,2]
[315953893,1709302243159,-184.6435661,0.00021,2]
[315953895,1709302243172,-8324.95914264,0.00021,2]
[315954976,1709303183711,351.594272,0.00015692,2]
[315954987,1709303273678,788.65,0.0001625,2]
[315955038,1709303432456,-616.3095412,0.00016336,2]
[315955124,1709303433876,3000.0,0.00015341,2]
[315955554,1709303438285,-179.57077703,0.00016335,2]
[315955557,1709303438295,-1495.6784044,0.00016336,2]
[315955559,1709303438306,-400.82246414,0.00016337,2]
[315955561,1709303438315,-678.47655593,0.00016337,2]
[315955563,1709303438324,-538.36619156,0.00016338,2]
[315955565,1709303438333,-557.5480976,0.00016339,2]
[315955567,1709303438343,-527.85698207,0.0001634,2]
[315955569,1709303438351,-21563.62408149,0.00016341,2]
[315955570,1709303438362,-172.90526148,0.00016345,2]
[315955573,1709303438372,-22842.7470924,0.00016445,2]
[315955574,1709303438382,-163.00948591,0.000189,2]
[315955576,1709303438392,-166.666666,0.00019178,2]
[315955578,1709303438402,-164.395204,0.00019178,2]
[315955581,1709303438412,-1266.28,0.0001949,3]
[315955582,1709303438421,-5445.53710548,0.000195,2]
[315955585,1709303438431,-826.82357225,0.00019501,2]
[315955586,1709303438441,-1144.44909027,0.00020189,5]
[315955588,1709303438450,-2565.49496893,0.00020189,5]
[315955590,1709303438459,-171.74858243,0.00020299,2]
[315955592,1709303438469,-156.84292908,0.00020299,2]
[315955595,1709303438479,-10896.86839679,0.00020445,2]
[315955596,1709303438487,-10995.15779231,0.00020447,2]
[315955598,1709303438497,-630.34117861,0.00020476,2]
[315955600,1709303438506,-58197.76041568,0.00020545,3]
[315955602,1709303438516,-500.0,0.00020547,2]
[315955605,1709303438525,-640.06006059,0.00020547,2]
[315955607,1709303438535,-500.9495085,0.00020547,2]
[315955608,1709303438545,-500.0,0.00020547,2]
[315955610,1709303438554,-246.492,0.00020547,2]
[315955612,1709303438565,-500.0,0.00020547,2]
[315955614,1709303438574,-500.0,0.00020547,2]
[315955616,1709303438583,-301.20701937,0.00020547,2]
[315955618,1709303438593,-500.0,0.00020547,2]
[315955620,1709303438604,-521.99028666,0.00020547,2]
[315955622,1709303438613,-500.0,0.00020547,2]
[315955624,1709303438623,-500.0,0.00020547,2]
[315955626,1709303438632,-500.0,0.00020547,2]
[315955629,1709303438643,-500.0,0.00020547,2]
[315955630,1709303438654,-216.29947554,0.00020547,2]
[315955632,1709303438663,-533.07,0.00020547,2]
[315955634,1709303438673,-500.0,0.00020547,2]
[315955637,1709303438682,-542.79,0.00020547,2]
[315955639,1709303438692,-500.0,0.00020547,2]
[315955640,1709303438701,-500.0,0.00020547,2]
[315955642,1709303438711,-500.0,0.00020547,2]
[315955645,1709303438722,-500.0,0.00020547,2]
[315955658,1709303438854,-500.0,0.00020547,2]
[315955660,1709303438865,-500.0,0.00020547,2]
[315955662,1709303438875,-500.0,0.00020547,2]
[315955664,1709303438884,-273.62,0.00020547,2]